[Event "European Womens-ch 2025"]
[Site "Rhodes"]
[Date "2025.04.04"]
[Round "5.42"]
[White "Mgeladze, Kesaria"]
[Black "Golsta, Madara"]
[Result "1-0"]
[Annotator "ChessBase"]
[ECO "B38"]
[WhiteElo "2200"]
[BlackElo "1979"]
[PlyCount "119"]
[EventDate "2025.03.29"]
[EventType "swiss"]
[EventCountry "GRE"]
[SourceTitle "playchess.com"]
[Source "ChessBase"]
[SourceQuality "1"]
[TimeControl "40/5400+30:1800+30"]

1. e4 {[%emt 0:00:03]} c5 {[%emt 0:00:06]} 2. Nf3 {[%emt 0:00:05]} Nc6 {[%emt 0:00:09]} 3. d4 {[%emt 0:00:12]} cxd4 {[%emt 0:00:10]} 4. Nxd4 {[%emt 0:00:04]} g6 {[%emt 0:00:10]} 5. c4 {[%emt 0:00:09]} Bg7 {[%emt 0:00:09]} 6. Be3 {[%emt 0:00:11]} Qb6 {[%emt 0:00:08]} 7. Nxc6 {[%emt 0:22:02]} Qxc6 {[%emt 0:01:35]} 8. Qc2 {[%emt 0:00:58]} b5 {[%emt 0:09:56]} 9. c5 {[%emt 0:21:45]} Nf6 {[%emt 0:09:09]} 10. Bd3 {[%emt 0:04:01]} Ng4 {[%emt 0:04:12]} 11. Bf4 {[%emt 0:13:13]} Qf6 {[%emt 0:06:44]} 12. Bc1 {[%emt 0:00:55]} O-O {[%emt 0:04:25]} 13. Nc3 {[%emt 0:05:09]} b4 {[%emt 0:15:32]} 14. Nd5 {[%emt 0:02:00]} Qd4 {[%emt 0:01:13]} 15. O-O {[%emt 0:11:26]} e6 {[%emt 0:06:51]} 16. Ne7+ {[%emt 0:06:43]} Kh8 {[%emt 0:00:08]} 17. Be2 {[%emt 0:00:07]} Nf6 {[%emt 0:07:33]} 18. Bf3 {[%emt 0:01:12]} Bb7 {[%emt 0:03:25]} 19. Rd1 {[%emt 0:01:54]} Bxe4 {[%emt 0:08:39]} 20. Rxd4 {[%emt 0:00:32]} Bxc2 {[%emt 0:00:07]} 21. Bxa8 {[%emt 0:00:25]} Rxa8 {[%emt 0:00:06]} 22. Bg5 {[%emt 0:02:58]} Ne4 {[%emt 0:04:53]} 23. Rxd7 {[%emt 0:00:04]} Nxg5 {[%emt 0:00:06]} 24. c6 {[%emt 0:01:29]} Ba4 {[%emt 0:03:35]} 25. Rb7 {[%emt 0:01:53]} Bxc6 {[%emt 0:01:12]} 26. Nxc6 {[%emt 0:00:06]} Bxb2 {[%emt 0:00:08]} 27. Rb1 {[%emt 0:00:25]} Bc3 {[%emt 0:00:20]} 28. h4 {[%emt 0:01:32]} Ne4 {[%emt 0:00:21]} 29. Nxb4 {[%emt 0:01:39]} Bd4 {[%emt 0:01:04]} 30. Nd3 {[%emt 0:01:16]} Kg8 {[%emt 0:03:59]} 31. Rb8+ {[%emt 0:00:34]} Rxb8 {[%emt 0:00:10]} 32. Rxb8+ {[%emt 0:00:03]} Kg7 {[%emt 0:00:07]} 33. Rb4 {[%emt 0:00:04]} e5 {[%emt 0:01:57]} 34. Nxe5 {[%emt 0:00:20]} Bxe5 {[%emt 0:01:13]} 35. Rxe4 {[%emt 0:00:06]} Bd6 {[%emt 0:00:18]} 36. Kf1 {[%emt 0:00:35]} Kf6 {[%emt 0:00:33]} 37. Ke2 {[%emt 0:00:12]} h5 {[%emt 0:00:36]} 38. Kf3 {[%emt 0:01:46]} Bc5 {[%emt 0:01:57]} 39. Kg3 {[%emt 0:00:40]} Bd6+ {[%emt 0:00:48]} 40. Kf3 {[%emt 0:00:00]} Bc5 {[%emt 0:00:00]} 41. Ke2 {[%emt 0:03:58]} Bb6 {[%emt 0:02:20]} 42. Kd3 {[%emt 0:00:56]} g5 {[%emt 0:01:54]} 43. hxg5+ {[%emt 0:02:21]} Kxg5 {[%emt 0:00:48]} 44. f3 {[%emt 0:00:07]} f5 {[%emt 0:01:22]} 45. Re8 {[%emt 0:01:47]} Kf4 {[%emt 0:01:29]} 46. Rh8 {[%emt 0:00:20]} Kg5 {[%emt 0:01:05]} 47. Kc4 {[%emt 0:06:43]} h4 {[%emt 0:02:20]} 48. Kd5 {[%emt 0:00:29]} Bf2 {[%emt 0:08:30]} 49. Ke5 {[%emt 0:02:00]} Bg3+ {[%emt 0:01:26]} 50. Ke6 {[%emt 0:00:31]} Kf4 {[%emt 0:05:29]} 51. Rh5 {[%emt 0:00:37]} Ke3 {[%emt 0:00:18]} 52. Kxf5 {[%emt 0:00:07]} Kf2 {[%emt 0:00:18]} 53. Kg4 {[%emt 0:00:04]} Kxg2 {[%emt 0:00:08]} 54. a4 {[%emt 0:00:08]} a5 {[%emt 0:01:46]} 55. Rh7 {[%emt 0:00:15]} Kf2 {[%emt 0:03:32]} 56. f4 {[%emt 0:00:07]} Ke3 {[%emt 0:00:14]} 57. f5 {[%emt 0:00:05]} Be5 {[%emt 0:01:26]} 58. Rxh4 {[%emt 0:00:23]} Ke4 {[%emt 0:01:28]} 59. Kg5+ {[%emt 0:00:12]} Kd5 {[%emt 0:00:08]} 60. f6 {[%emt 0:00:23]} 1-0

[Event "European Womens-ch 2025"]
[Site "Rhodes"]
[Date "2025.04.04"]
[Round "5.43"]
[White "Prado Acebo, Ines"]
[Black "Nahapetyan, Ani"]
[Result "1-0"]
[Annotator "ChessBase"]
[ECO "D10"]
[WhiteElo "2199"]
[BlackElo "1887"]
[PlyCount "111"]
[EventDate "2025.03.29"]
[EventType "swiss"]
[EventCountry "GRE"]
[SourceTitle "playchess.com"]
[Source "ChessBase"]
[SourceQuality "1"]
[TimeControl "40/5400+30:1800+30"]

1. d4 {[%emt 0:00:04]} d5 {[%emt 0:00:06]} 2. c4 {[%emt 0:00:08]} c6 {[%emt 0:00:05]} 3. cxd5 {[%emt 0:00:08]} cxd5 {[%emt 0:00:17]} 4. Nc3 {[%emt 0:00:07]} Nf6 {[%emt 0:00:47]} 5. f3 {[%emt 0:00:11]} Bf5 {[%emt 0:04:01]} 6. g4 {[%emt 0:00:14]} Be6 {[%emt 0:03:50]} 7. Nh3 {[%emt 0:06:31]} Qd7 {[%emt 0:12:40]} 8. Nf4 {[%emt 0:02:56]} h6 {[%emt 0:05:46]} 9. h4 {[%emt 0:08:07]} Nc6 {[%emt 0:06:32]} 10. Bh3 {[%emt 0:03:29]} g5 {[%emt 0:09:58]} 11. hxg5 {[%emt 0:03:22]} hxg5 {[%emt 0:01:39]} 12. Nxe6 {[%emt 0:04:02]} Qxe6 {[%emt 0:01:20]} 13. Bxg5 {[%emt 0:00:44]} Nxg4 {[%emt 0:13:26]} 14. fxg4 {[%emt 0:07:45]} Rxh3 {[%emt 0:00:21]} 15. Rxh3 {[%emt 0:02:06]} Qxg4 {[%emt 0:00:12]} 16. Rf3 {[%emt 0:09:50]} Qg1+ {[%emt 0:01:34]} 17. Rf1 {[%emt 0:07:24]} Qg3+ {[%emt 0:00:21]} 18. Kd2 {[%emt 0:00:07]} Qxg5+ {[%emt 0:00:18]} 19. e3 {[%emt 0:00:15]} Nxd4 {[%emt 0:04:27]} 20. Qa4+ {[%emt 0:02:58]} Nc6 {[%emt 0:00:06]} 21. Rg1 {[%emt 0:08:54]} Qe5 {[%emt 0:01:59]} 22. Qf4 {[%emt 0:01:06]} O-O-O {[%emt 0:05:26]} 23. Qxe5 {[%emt 0:02:47]} Nxe5 {[%emt 0:00:32]} 24. Ke2 {[%emt 0:00:43]} Bh6 {[%emt 0:05:37]} 25. Rac1 {[%emt 0:10:15]} Kb8 {[%emt 0:00:52]} 26. Nxd5 {[%emt 0:01:07]} e6 {[%emt 0:01:05]} 27. Nf6 {[%emt 0:02:01]} a6 {[%emt 0:05:05]} 28. b3 {[%emt 0:01:53]} Bf8 {[%emt 0:04:55]} 29. Rgd1 {[%emt 0:04:50]} Rxd1 {[%emt 0:00:50]} 30. Rxd1 {[%emt 0:00:17]} Kc7 {[%emt 0:00:27]} 31. Ne8+ {[%emt 0:02:45]} Kc6 {[%emt 0:00:55]} 32. Rc1+ {[%emt 0:00:59]} Kb6 {[%emt 0:01:30]} 33. Nf6 {[%emt 0:02:07]} Be7 {[%emt 0:00:38]} 34. Ne4 {[%emt 0:00:14]} Ng4 {[%emt 0:01:19]} 35. Nf2 {[%emt 0:02:07]} Nxe3 {[%emt 0:00:25]} 36. Rc8 {[%emt 0:01:27]} Nd5 {[%emt 0:00:52]} 37. Nd3 {[%emt 0:00:15]} Bd6 {[%emt 0:02:45]} 38. Nb2 {[%emt 0:00:41]} Bf4 {[%emt 0:03:17]} 39. Nd3 {[%emt 0:03:34]} Bc7 {[%emt 0:00:49]} 40. Rf8 {[%emt 0:00:00]} f6 {[%emt 0:00:00]} 41. Re8 {[%emt 0:05:51]} e5 {[%emt 0:03:46]} 42. Re6+ {[%emt 0:01:36]} Kb5 {[%emt 0:03:42]} 43. Kd2 {[%emt 0:02:33]} b6 {[%emt 0:07:06]} 44. a4+ {[%emt 0:06:52]} Ka5 {[%emt 0:00:12]} 45. Kc2 {[%emt 0:02:37]} b5 {[%emt 0:06:03]} 46. Rc6 {[%emt 0:03:45]} Bb6 {[%emt 0:03:52]} 47. Rd6 {[%emt 0:00:48]} Ne3+ {[%emt 0:01:46]} 48. Kb1 {[%emt 0:04:33]} bxa4 {[%emt 0:01:41]} 49. bxa4 {[%emt 0:00:58]} Bd4 {[%emt 0:02:43]} 50. Rxf6 {[%emt 0:01:17]} e4 {[%emt 0:03:31]} 51. Rd6 {[%emt 0:00:06]} Nf5 {[%emt 0:02:48]} 52. Rd5+ {[%emt 0:00:07]} Kxa4 {[%emt 0:00:05]} 53. Nc1 {[%emt 0:00:25]} Kb4 {[%emt 0:00:52]} 54. Rxf5 {[%emt 0:00:08]} Kc4 {[%emt 0:01:27]} 55. Kc2 {[%emt 0:00:36]} e3 {[%emt 0:00:21]} 56. Ra5 {[%emt 0:00:37]} 1-0

[Event "European Womens-ch 2025"]
[Site "Rhodes"]
[Date "2025.04.04"]
[Round "5.44"]
[White "Korenova, Martina"]
[Black "Karacsonyi, Kata"]
[Result "0-1"]
[Annotator "ChessBase"]
[ECO "A65"]
[WhiteElo "2045"]
[BlackElo "2198"]
[PlyCount "78"]
[EventDate "2025.03.29"]
[EventType "swiss"]
[EventCountry "GRE"]
[SourceTitle "playchess.com"]
[Source "ChessBase"]
[SourceQuality "1"]
[TimeControl "40/5400+30:1800+30"]

1. c4 {[%emt 0:00:03]} Nf6 {[%emt 0:03:33]} 2. Nc3 {[%emt 0:00:02]} g6 {[%emt 0:00:20]} 3. d4 {[%emt 0:02:42]} Bg7 {[%emt 0:00:09]} 4. e4 {[%emt 0:00:34]} d6 {[%emt 0:00:07]} 5. f3 {[%emt 0:03:32]} O-O {[%emt 0:00:15]} 6. Be3 {[%emt 0:00:13]} c5 {[%emt 0:00:09]} 7. d5 {[%emt 0:06:42]} e6 {[%emt 0:05:14]} 8. Nge2 {[%emt 0:08:49]} exd5 {[%emt 0:01:31]} 9. cxd5 {[%emt 0:00:06]} a6 {[%emt 0:00:43]} 10. a4 {[%emt 0:00:34]} Re8 {[%emt 0:01:47]} 11. Ng3 {[%emt 0:06:20]} h5 {[%emt 0:02:41]} 12. h4 {[%emt 0:07:01]} Nh7 {[%emt 0:08:46]} 13. Bf2 {[%emt 0:08:02]} Bf6 {[%emt 0:01:06]} 14. Nge2 {[%emt 0:00:52]} Nd7 {[%emt 0:03:14]} 15. g3 {[%emt 0:04:24]} Ne5 {[%emt 0:06:50]} 16. Bg2 {[%emt 0:00:17]} Bd7 {[%emt 0:03:36]} 17. a5 {[%emt 0:08:58]} Nc4 {[%emt 0:01:59]} 18. O-O {[%emt 0:04:05]} Nxa5 {[%emt 0:04:50]} 19. f4 {[%emt 0:01:06]} Bg4 {[%emt 0:21:03]} 20. Qc2 {[%emt 0:05:15]} b5 {[%emt 0:02:57]} 21. e5 {[%emt 0:01:20]} dxe5 {[%emt 0:02:35]} 22. Bxc5 {[%emt 0:00:28]} Rc8 {[%emt 0:10:56]} 23. b4 {[%emt 0:00:55]} Nb7 {[%emt 0:00:24]} 24. Ne4 {[%emt 0:05:23]} a5 {[%emt 0:04:36]} 25. N2c3 {[%emt 0:10:12]} exf4 {[%emt 0:03:11]} 26. Nxf6+ {[%emt 0:01:21]} Nxf6 {[%emt 0:00:12]} 27. Rxf4 {[%emt 0:01:59]} Nxc5 {[%emt 0:00:47]} 28. bxc5 {[%emt 0:00:21]} Rxc5 {[%emt 0:01:24]} 29. Raf1 {[%emt 0:00:23]} Bf5 {[%emt 0:00:59]} 30. Rxf5 {[%emt 0:00:45]} gxf5 {[%emt 0:00:08]} 31. Qxf5 {[%emt 0:00:41]} Qb6 {[%emt 0:03:36]} 32. Qg5+ {[%emt 0:01:08]} Kf8 {[%emt 0:00:37]} 33. Qh6+ {[%emt 0:05:56]} Ke7 {[%emt 0:00:38]} 34. Ne4 {[%emt 0:03:13]} Rc1+ {[%emt 0:02:48]} 35. Kh1 {[%emt 0:00:06]} Rxf1+ {[%emt 0:00:04]} 36. Bxf1 {[%emt 0:00:02]} Nxd5 {[%emt 0:00:42]} 37. Qg5+ {[%emt 0:00:11]} Nf6 {[%emt 0:00:07]} 38. Bxb5 {[%emt 0:00:59]} Rc8 {[%emt 0:00:55]} 39. Bd3 {[%emt 0:04:02]} Qe6 {[%emt 0:01:54]} 0-1

[Event "European Womens-ch 2025"]
[Site "Rhodes"]
[Date "2025.04.04"]
[Round "5.45"]
[White "Kosma, Maria"]
[Black "Terbe, Zsuzsanna"]
[Result "0-1"]
[Annotator "ChessBase"]
[ECO "C95"]
[WhiteElo "1826"]
[BlackElo "2179"]
[PlyCount "88"]
[EventDate "2025.03.29"]
[EventType "swiss"]
[EventCountry "GRE"]
[SourceTitle "playchess.com"]
[Source "ChessBase"]
[SourceQuality "1"]
[TimeControl "40/5400+30:1800+30"]

1. e4 {[%emt 0:00:10]} e5 {[%emt 0:03:14]} 2. Nf3 {[%emt 0:00:05]} Nc6 {[%emt 0:00:12]} 3. Bb5 {[%emt 0:00:05]} a6 {[%emt 0:00:13]} 4. Ba4 {[%emt 0:00:07]} Nf6 {[%emt 0:00:22]} 5. O-O {[%emt 0:00:13]} Be7 {[%emt 0:00:21]} 6. Re1 {[%emt 0:00:40]} b5 {[%emt 0:00:16]} 7. Bb3 {[%emt 0:00:06]} d6 {[%emt 0:00:10]} 8. c3 {[%emt 0:00:52]} O-O {[%emt 0:00:30]} 9. h3 {[%emt 0:00:07]} Nb8 {[%emt 0:00:14]} 10. d4 {[%emt 0:01:31]} Nbd7 {[%emt 0:00:06]} 11. Nbd2 {[%emt 0:02:22]} Bb7 {[%emt 0:00:16]} 12. Bc2 {[%emt 0:02:08]} Re8 {[%emt 0:00:15]} 13. Nf1 {[%emt 0:03:30]} Bf8 {[%emt 0:00:17]} 14. Ng3 {[%emt 0:00:49]} g6 {[%emt 0:00:07]} 15. Nh2 {[%emt 0:05:54]} Bg7 {[%emt 0:04:08]} 16. Ng4 {[%emt 0:02:35]} Nxg4 {[%emt 0:00:14]} 17. hxg4 {[%emt 0:00:05]} exd4 {[%emt 0:09:15]} 18. cxd4 {[%emt 0:00:39]} c5 {[%emt 0:00:16]} 19. d5 {[%emt 0:14:33]} Qh4 {[%emt 0:07:58]} 20. Bd3 {[%emt 0:14:20]} Bd4 {[%emt 0:07:24]} 21. Bf4 {[%emt 0:03:25]} Ne5 {[%emt 0:04:01]} 22. Be2 {[%emt 0:06:02]} Bc8 {[%emt 0:04:32]} 23. Nh1 {[%emt 0:09:25]} Qf6 {[%emt 0:22:35]} 24. Qd2 {[%emt 0:05:04]} Nxg4 {[%emt 0:03:22]} 25. Bxg4 {[%emt 0:01:05]} Bxg4 {[%emt 0:00:04]} 26. Bg5 {[%emt 0:00:13]} Qe5 {[%emt 0:02:28]} 27. Rab1 {[%emt 0:02:43]} f6 {[%emt 0:03:35]} 28. Bf4 {[%emt 0:03:00]} Qe7 {[%emt 0:00:07]} 29. Bg3 {[%emt 0:00:16]} Rad8 {[%emt 0:02:30]} 30. Kh2 {[%emt 0:02:39]} g5 {[%emt 0:04:28]} 31. f3 {[%emt 0:01:58]} Bd7 {[%emt 0:02:56]} 32. Bf2 {[%emt 0:06:30]} Be5+ {[%emt 0:02:18]} 33. g3 {[%emt 0:00:06]} Qg7 {[%emt 0:01:10]} 34. Be3 {[%emt 0:01:26]} Qh6+ {[%emt 0:02:25]} 35. Kg1 {[%emt 0:00:08]} Kh8 {[%emt 0:01:15]} 36. Re2 {[%emt 0:02:15]} Rg8 {[%emt 0:00:38]} 37. Rh2 {[%emt 0:00:19]} Qg6 {[%emt 0:00:25]} 38. Rf1 {[%emt 0:05:48]} f5 {[%emt 0:01:50]} 39. exf5 {[%emt 0:01:15]} Bxf5 {[%emt 0:00:21]} 40. f4 {[%emt 0:00:00]} gxf4 {[%emt 0:00:00]} 41. Bxf4 {[%emt 0:02:46]} Be4 {[%emt 0:14:06]} 42. Rh6 {[%emt 0:03:02]} Qg7 {[%emt 0:00:09]} 43. Rh3 {[%emt 0:05:02]} Bd4+ {[%emt 0:04:40]} 44. Kh2 {[%emt 0:03:46]} Bxd5 {[%emt 0:04:06]} 0-1

[Event "European Womens-ch 2025"]
[Site "Rhodes"]
[Date "2025.04.04"]
[Round "5.46"]
[White "Lach, Aleksandra"]
[Black "Shuqja, Klean"]
[Result "1/2-1/2"]
[Annotator "ChessBase"]
[ECO "A47"]
[WhiteElo "2208"]
[BlackElo "2049"]
[PlyCount "105"]
[EventDate "2025.03.29"]
[EventType "swiss"]
[EventCountry "GRE"]
[SourceTitle "playchess.com"]
[Source "ChessBase"]
[SourceQuality "1"]
[TimeControl "40/5400+30:1800+30"]

1. d4 {[%emt 0:01:37]} Nf6 {[%emt 0:02:08]} 2. Nf3 {[%emt 0:00:35]} e6 {[%emt 0:01:13]} 3. e3 {[%emt 0:03:11]} b6 {[%emt 0:00:18]} 4. Bd3 {[%emt 0:01:24]} Bb7 {[%emt 0:00:09]} 5. O-O {[%emt 0:05:51]} Be7 {[%emt 0:00:08]} 6. Nbd2 {[%emt 0:00:12]} c5 {[%emt 0:01:23]} 7. b3 {[%emt 0:01:24]} Nc6 {[%emt 0:00:27]} 8. Bb2 {[%emt 0:01:29]} d5 {[%emt 0:01:34]} 9. Ne5 {[%emt 0:12:24]} Nxe5 {[%emt 0:05:26]} 10. dxe5 {[%emt 0:02:06]} Nd7 {[%emt 0:02:18]} 11. f4 {[%emt 0:04:28]} g6 {[%emt 0:10:08]} 12. Qe2 {[%emt 0:07:16]} Qc7 {[%emt 0:05:05]} 13. c4 {[%emt 0:04:09]} O-O-O {[%emt 0:09:51]} 14. cxd5 {[%emt 0:07:19]} Bxd5 {[%emt 0:02:51]} 15. Ba6+ {[%emt 0:06:01]} Bb7 {[%emt 0:03:38]} 16. a4 {[%emt 0:05:41]} Bxa6 {[%emt 0:02:01]} 17. Qxa6+ {[%emt 0:00:06]} Qb7 {[%emt 0:00:11]} 18. Qe2 {[%emt 0:05:24]} Nb8 {[%emt 0:05:46]} 19. a5 {[%emt 0:08:06]} b5 {[%emt 0:10:34]} 20. Rac1 {[%emt 0:03:06]} Rd7 {[%emt 0:02:19]} 21. Nf3 {[%emt 0:04:45]} Rhd8 {[%emt 0:04:23]} 22. e4 {[%emt 0:01:33]} Nc6 {[%emt 0:02:41]} 23. Qe1 {[%emt 0:01:22]} Kb8 {[%emt 0:00:45]} 24. f5 {[%emt 0:01:41]} Nb4 {[%emt 0:04:00]} 25. Qe2 {[%emt 0:00:44]} Rd3 {[%emt 0:02:41]} 26. Rc3 {[%emt 0:04:43]} a6 {[%emt 0:06:41]} 27. Rxd3 {[%emt 0:01:29]} Rxd3 {[%emt 0:00:25]} 28. Bc1 {[%emt 0:00:51]} gxf5 {[%emt 0:01:40]} 29. exf5 {[%emt 0:00:04]} Qd5 {[%emt 0:00:47]} 30. f6 {[%emt 0:00:46]} Bf8 {[%emt 0:09:13]} 31. Ng5 {[%emt 0:00:02]} c4 {[%emt 0:02:50]} 32. bxc4 {[%emt 0:01:04]} bxc4 {[%emt 0:00:15]} 33. Nxf7 {[%emt 0:00:27]} c3 {[%emt 0:00:13]} 34. Nd6 {[%emt 0:02:19]} Qd4+ {[%emt 0:02:20]} 35. Kh1 {[%emt 0:01:22]} c2 {[%emt 0:00:02]} 36. Qh5 {[%emt 0:00:55]} Bxd6 {[%emt 0:00:52]} 37. exd6 {[%emt 0:00:01]} Qf2 {[%emt 0:01:10]} 38. Qe8+ {[%emt 0:01:47]} Kb7 {[%emt 0:00:04]} 39. Qd7+ {[%emt 0:00:33]} Kb8 {[%emt 0:00:56]} 40. Qd8+ {[%emt 0:00:00]} Kb7 {[%emt 0:00:00]} 41. Qb6+ {[%emt 0:29:19]} Qxb6 {[%emt 0:00:36]} 42. axb6 {[%emt 0:00:02]} Rd1 {[%emt 0:00:18]} 43. Kg1 {[%emt 0:00:00]} Nd3 {[%emt 0:00:48]} 44. f7 {[%emt 0:00:29]} Nxc1 {[%emt 0:00:52]} 45. f8=Q {[%emt 0:00:11]} Ne2+ {[%emt 0:00:37]} 46. Kh1 {[%emt 0:00:32]} c1=Q {[%emt 0:02:05]} 47. Qf3+ {[%emt 0:00:10]} Kb8 {[%emt 0:08:06]} 48. Qf8+ {[%emt 0:00:19]} Kb7 {[%emt 0:00:18]} 49. Qf3+ {[%emt 0:03:16]} Kb8 {[%emt 0:00:38]} 50. Qf8+ {[%emt 0:00:08]} Kb7 {[%emt 0:00:12]} 51. Qf3+ {[%emt 0:00:36]} Kb8 {[%emt 0:00:07]} 52. Qf8+ {[%emt 0:00:18]} Kb7 {[%emt 0:00:01]} 53. Qf3+ {[%emt 0:00:37]} 1/2-1/2

[Event "European Womens-ch 2025"]
[Site "Rhodes"]
[Date "2025.04.04"]
[Round "5.47"]
[White "Schloffer, Jasmin-Denise"]
[Black "Donghvani, Nia"]
[Result "1/2-1/2"]
[Annotator "ChessBase"]
[ECO "E48"]
[WhiteElo "2188"]
[BlackElo "2025"]
[PlyCount "81"]
[EventDate "2025.03.29"]
[EventType "swiss"]
[EventCountry "GRE"]
[SourceTitle "playchess.com"]
[Source "ChessBase"]
[SourceQuality "1"]
[TimeControl "40/5400+30:1800+30"]

1. d4 {[%emt 0:00:03]} Nf6 {[%emt 0:00:25]} 2. c4 {[%emt 0:00:06]} e6 {[%emt 0:00:18]} 3. Nc3 {[%emt 0:00:06]} Bb4 {[%emt 0:00:24]} 4. e3 {[%emt 0:00:18]} O-O {[%emt 0:00:36]} 5. Bd3 {[%emt 0:00:35]} c5 {[%emt 0:00:31]} 6. Nge2 {[%emt 0:00:54]} d5 {[%emt 0:04:50]} 7. cxd5 {[%emt 0:01:47]} cxd4 {[%emt 0:00:31]} 8. exd4 {[%emt 0:00:26]} Nxd5 {[%emt 0:05:49]} 9. O-O {[%emt 0:02:35]} Nc6 {[%emt 0:07:06]} 10. Nxd5 {[%emt 0:10:00]} exd5 {[%emt 0:07:17]} 11. Nf4 {[%emt 0:11:02]} Qd6 {[%emt 0:15:03]} 12. Be3 {[%emt 0:09:01]} Ne7 {[%emt 0:06:58]} 13. Qh5 {[%emt 0:07:49]} f5 {[%emt 0:09:18]} 14. Bc2 {[%emt 0:13:47]} Ba5 {[%emt 0:05:37]} 15. Nd3 {[%emt 0:01:41]} Bb6 {[%emt 0:02:23]} 16. Bb3 {[%emt 0:11:07]} a5 {[%emt 0:13:46]} 17. Bf4 {[%emt 0:04:04]} Qd8 {[%emt 0:00:51]} 18. Be5 {[%emt 0:02:41]} a4 {[%emt 0:04:07]} 19. Bc2 {[%emt 0:03:23]} Nc6 {[%emt 0:00:56]} 20. Qd1 {[%emt 0:01:40]} Nxd4 {[%emt 0:03:57]} 21. Bxa4 {[%emt 0:03:09]} Nc6 {[%emt 0:00:17]} 22. Bb3 {[%emt 0:01:21]} Nxe5 {[%emt 0:01:04]} 23. Nxe5 {[%emt 0:00:05]} Be6 {[%emt 0:00:03]} 24. Nf3 {[%emt 0:01:10]} Kh8 {[%emt 0:01:18]} 25. Nd4 {[%emt 0:02:09]} Bg8 {[%emt 0:00:01]} 26. Qd3 {[%emt 0:00:14]} Qf6 {[%emt 0:01:40]} 27. Rad1 {[%emt 0:01:32]} Rae8 {[%emt 0:01:46]} 28. Rd2 {[%emt 0:03:23]} Re4 {[%emt 0:02:48]} 29. Nf3 {[%emt 0:00:31]} Rd8 {[%emt 0:01:39]} 30. Qb5 {[%emt 0:01:59]} d4 {[%emt 0:01:18]} 31. Bxg8 {[%emt 0:02:40]} Kxg8 {[%emt 0:00:39]} 32. a4 {[%emt 0:00:54]} h6 {[%emt 0:01:36]} 33. Rfd1 {[%emt 0:01:58]} Kh7 {[%emt 0:00:58]} 34. b4 {[%emt 0:00:37]} Bc7 {[%emt 0:00:47]} 35. Qxb7 {[%emt 0:01:08]} Bf4 {[%emt 0:00:02]} 36. Rd3 {[%emt 0:00:44]} Rb8 {[%emt 0:00:15]} 37. Qd5 {[%emt 0:00:48]} Rxb4 {[%emt 0:00:19]} 38. Rxd4 {[%emt 0:00:37]} Rxa4 {[%emt 0:02:17]} 39. Rxa4 {[%emt 0:01:07]} Rxa4 {[%emt 0:00:00]} 40. Nd4 {[%emt 0:00:00]} Be5 {[%emt 0:00:00]} 41. Nf3 {[%emt 0:05:10]} 1/2-1/2

[Event "European Womens-ch 2025"]
[Site "Rhodes"]
[Date "2025.04.04"]
[Round "5.48"]
[White "Hariharan, Shambavi"]
[Black "Pavlidou, Ekaterini"]
[Result "0-1"]
[Annotator "ChessBase"]
[ECO "A43"]
[WhiteElo "2024"]
[BlackElo "2160"]
[PlyCount "106"]
[EventDate "2025.03.29"]
[EventType "swiss"]
[EventCountry "GRE"]
[SourceTitle "playchess.com"]
[Source "ChessBase"]
[SourceQuality "1"]
[TimeControl "40/5400+30:1800+30"]

1. d4 {[%emt 0:00:33]} Nf6 {[%emt 0:02:59]} 2. Nf3 {[%emt 0:00:08]} c5 {[%emt 0:02:17]} 3. d5 {[%emt 0:00:46]} d6 {[%emt 1:26:44]} 4. Nc3 {[%emt 0:03:14]} g6 {[%emt 0:00:00]} 5. e4 {[%emt 0:00:54]} Bg4 {[%emt 0:00:00]} 6. h3 {[%emt 0:02:33]} Bxf3 {[%emt 0:00:00]} 7. Qxf3 {[%emt 0:00:23]} Nbd7 {[%emt 0:00:00]} 8. Bf4 {[%emt 0:00:44]} Bg7 {[%emt 0:00:00]} 9. Bc4 {[%emt 0:01:47]} a6 {[%emt 0:00:00]} 10. a4 {[%emt 0:02:18]} O-O {[%emt 0:00:00]} 11. O-O {[%emt 0:02:56]} Nh5 {[%emt 0:00:00]} 12. Bh2 {[%emt 0:05:54]} Be5 {[%emt 0:00:00]} 13. Be2 {[%emt 0:03:30]} f5 {[%emt 0:00:00]} 14. exf5 {[%emt 0:03:21]} Rxf5 {[%emt 0:00:00]} 15. Qe3 {[%emt 0:01:29]} Bd4 {[%emt 0:00:00]} 16. Qe6+ {[%emt 0:04:30]} Rf7 {[%emt 0:00:00]} 17. Bxh5 {[%emt 0:04:51]} gxh5 {[%emt 0:00:00]} 18. Ne2 {[%emt 0:01:35]} Nf8 {[%emt 0:00:00]} 19. Qh6 {[%emt 0:02:37]} Bg7 {[%emt 0:00:00]} 20. Qxh5 {[%emt 0:01:33]} Qb6 {[%emt 0:00:00]} 21. Rab1 {[%emt 0:01:48]} Ng6 {[%emt 0:00:00]} 22. b3 {[%emt 0:00:30]} Raf8 {[%emt 0:00:00]} 23. c4 {[%emt 0:00:30]} Qb4 {[%emt 0:00:00]} 24. f4 {[%emt 0:00:30]} Qd2 {[%emt 0:00:00]} 25. Kh1 {[%emt 0:00:30]} Rf5 {[%emt 0:00:00]} 26. Qg4 {[%emt 0:00:30]} Ne5 {[%emt 0:00:00]} 27. Qh4 {[%emt 0:00:30]} Qxe2 {[%emt 0:00:00]} 28. Rfe1 {[%emt 0:00:30]} Ng6 {[%emt 0:00:00]} 29. Qxh7+ {[%emt 0:00:30]} Kxh7 {[%emt 0:00:00]} 30. Rxe2 {[%emt 0:20:12]} Nxf4 {[%emt 0:00:00]} 31. Bxf4 {[%emt 0:00:07]} Rxf4 {[%emt 0:00:00]} 32. Rxe7 {[%emt 0:00:04]} R8f7 {[%emt 0:00:00]} 33. Rbe1 {[%emt 0:01:58]} Be5 {[%emt 0:00:00]} 34. Rxf7+ {[%emt 0:00:35]} Rxf7 {[%emt 0:00:00]} 35. Kg1 {[%emt 0:00:24]} a5 {[%emt 0:00:00]} 36. Re4 {[%emt 0:01:53]} Kg6 {[%emt 0:00:00]} 37. Re1 {[%emt 0:01:37]} Rf4 {[%emt 0:00:00]} 38. Re2 {[%emt 0:01:28]} Rd4 {[%emt 0:00:00]} 39. Re1 {[%emt 0:00:16]} Rd3 {[%emt 0:00:00]} 40. Rb1 {[%emt 0:00:00]} Bg3 {[%emt 0:00:00]} 41. Kf1 {[%emt 0:00:42]} Re3 {[%emt 0:00:00]} 42. Kg1 {[%emt 0:00:14]} Kf5 {[%emt 0:00:00]} 43. Kf1 {[%emt 0:00:07]} Ke4 {[%emt 0:00:00]} 44. Kg1 {[%emt 0:00:02]} Kd3 {[%emt 0:00:00]} 45. Rf1 {[%emt 0:00:41]} Kc2 {[%emt 0:00:25]} 46. Rf3 {[%emt 0:00:26]} Re1+ {[%emt 0:01:03]} 47. Rf1 {[%emt 0:00:06]} Rxf1+ {[%emt 0:01:31]} 48. Kxf1 {[%emt 0:00:04]} Kxb3 {[%emt 0:00:30]} 49. Ke2 {[%emt 0:00:30]} Kxc4 {[%emt 0:00:30]} 50. Kf3 {[%emt 0:00:30]} Be5 {[%emt 0:00:30]} 51. g4 {[%emt 0:00:30]} Kb3 {[%emt 0:00:30]} 52. g5 {[%emt 0:00:30]} c4 {[%emt 0:00:30]} 53. g6 {[%emt 0:00:30]} c3 {[%emt 0:00:30]} 0-1